Cogmind - Beta 9.6 @@@ ROGUE MODE // 2020.07.13 @ 17:28:03 Player: dhtilly Result: Destroyed by D-53 Grenadier with Mini Grenade Launcher Performance ------------- Evolutions (0) 0 Regions Visited (2) 400 Robots Destroyed (22) 110 Value Destroyed (492) 492 Prototype IDs (3) 60 Alien Tech Used (0) 0 Bonus (0) 0 TOTAL SCORE: 1062 Bonus ------- None Cogmind --------- Core Integrity 0/250 Matter 209/300 Energy 250/250 System Corruption 1% Temperature Cool (0) Movement Flying (120) Ox1 Location -10/Mines Parts ------- > --- POWER (1) -------- Ion Engine > --- PROPULSION (2) --- Flight Unit > --- UTILITY (2) ------ Maneuvering Thrusters > --- WEAPON (2) ------- Datajack > --- INVENTORY (4) ---- Ion Engine Heat Sink Minigun Mining Laser Peak State ------------ > --- POWER ------------ Ion Engine > --- PROPULSION ------- Flight Unit Flight Unit > --- UTILITY ---------- Maneuvering Thrusters > --- WEAPON ----------- Minigun Datajack > --- INVENTORY -------- Ion Engine Heat Sink Mining Laser [Rating: 10] Favorites ----------- Power Light Ion Engine Engine Light Ion Engine Power Core Light Nuclear Core Propulsion Aluminum Leg Leg Aluminum Leg Hover Unit Backup Propulsion I Flight Unit Flight Unit Utility Small Storage Unit Device Heat Sink Storage Small Storage Unit Processor Targeting Computer Weapon Light Assault Rifle Energy Gun Small Laser Ballistic Gun Light Assault Rifle Launcher Rocket Launcher Special Weapon Mining Laser Special Melee Weapon Datajack Build | -11 -10 -10 ------- Run | Scr Mat Min Slots Evolved . | . . . Power . | . . . Propulsion . | . . . Utility . | . . . Weapon . | . . . Parts Attached 33 | 5 17 11 Power 5 | 1 4 . Engine 4 | 1 3 . Core 1 | . 1 . Reactor . | . . . Propulsion 9 | 2 5 2 Treads . | . . . Leg 5 | 2 3 . Wheel . | . . . Hover . | . . . Flight 4 | . 2 2 Utility 5 | . 4 1 Device 2 | . 1 1 Storage 2 | . 2 . Processor 1 | . 1 . Hackware . | . . . Protection . | . . . Artifact . | . . . Weapon 14 | 2 4 8 Energy Gun 2 | . 2 . Energy Cannon . | . . . Ballistic Gun 5 | 2 1 2 Ballistic Cannon . | . . . Launcher 2 | . 1 1 Special Weapon 1 | . . 1 Impact Weapon . | . . . Slashing Weapon . | . . . Piercing Weapon . | . . . Special Melee Weapon 4 | . . 4 Unidentified Prototypes . | . . . Parts Lost 10 | . 8 2 Power 2 | . 2 . Propulsion 4 | . 3 1 Utility . | . . . Weapon 4 | . 3 1 Highest Loss Streak 6 | . 6 1 Average Slot Usage (%) 75 | . 79 62 Engine 8 | . 6 14 Core 4 | . 5 . Leg 18 | . 23 . Flight 7 | . 1 28 Device 5 | . 5 6 Storage 7 | . 9 . Processor 3 | . 3 . Energy Gun 2 | . 2 3 Ballistic Gun 15 | . 19 1 Special Melee Weapon 1 | . . 5 Naked Turns 27 | . 27 . Heaviest Build 16 | 6 16 9 Greatest Support 20 | 20 20 8 Greatest Overweight (x) 4 | . 4 1 Average Overweight (x) . | . . . Largest Inventory Capacity 8 | 4 8 4 Average Capacity 5 | 4 5 4 Most Carried 7 | 3 7 4 Average Carried 4 | . 5 3 Final Capacity 4 | 4 4 4 Final Carried 4 | 3 4 4 Class Distribution -------------------- 100% | Mutant Dominant Class ---------------- Mutant | -10/Materials Mutant | -10/Mines Resources | -11 -10 -10 ----------- Run | Scr Mat Min Matter Collected 605 | 254 275 76 Remotely . | . . . Salvage Created 469 | 37 380 52 Parts 32 | 2 25 5 Haulers Intercepted . | . . . Recyclers Shooed . | . . . Parts Field Recycled . | . . . Retrieved Matter . | . . . Parts Self-Destructed . | . . . Prevented . | . . . Kills | -11 -10 -10 ------- Run | Scr Mat Min Combat Hostiles Destroyed 17 | 1 13 3 Guns 15 | 1 12 2 AOE 2 | . 1 1 Classes Destroyed 5 | 1 4 . Worker 1 | . 1 . Builder 2 | . 2 . Watcher 2 | . 2 . Swarmer 8 | . 6 2 Grunt 9 | 1 7 1 Best Kill Streak 6 | 1 6 2 Combat Bots Only 5 | 1 5 2 Max Kills in Single Turn 2 | 1 2 1 Gunslinging . | . . . Exploded 1 | . 1 1 Melee . | . . . Uniques/NPCs Destroyed . | . . . Combat | -11 -10 -10 -------- Run | Scr Mat Min Damage Taken 1310 | 12 1117 181 Core 260 | . 227 33 Absorbed by Shields . | . . . Core Remaining (%) 100 | 100 . . Volleys Fired 68 | 1 58 9 Largest 2 | 2 2 2 Hottest 73 | 40 70 73 Shots Fired 100 | 2 85 13 Gun 92 | 2 82 8 Cannon . | . . . Launcher 8 | . 3 5 Special . | . . . Kinetic 76 | 2 71 3 Thermal 16 | . 11 5 Explosive 8 | . 3 5 Electromagnetic . | . . . Robot Hit Streak 11 | 1 11 8 Robot Miss Streak 4 | . 4 2 Penetration Max . | . . . Secondary Targets 2 | . 2 . Max Gunslinging Chain 1 | . 1 . Shots Hit Robots 63 | 1 53 9 Core Hits 38 | 1 32 5 Critical Hits . | . . . Critical Kills . | . . . Critical Parts Destroyed . | . . . Melee Attacks . | . . . Impact . | . . . Slashing . | . . . Piercing . | . . . Sneak Attacks . | . . . Combat Hostiles . | . . . Follow-up Attacks . | . . . Damage Inflicted 1454 | 15 1150 289 Guns 647 | 15 543 89 Cannons . | . . . Explosions 807 | . 607 200 Melee . | . . . Ramming . | . . . Kinetic 521 | 15 451 55 Thermal 126 | . 92 34 Explosive 807 | . 607 200 Electromagnetic . | . . . Impact . | . . . Slashing . | . . . Piercing . | . . . Highest Corruption 1 | . 1 1 Average Corruption 1 | . 1 1 Corruption Purged . | . . . Effects 2 | . . 2 Message Errors 1 | . . 1 Targeting Errors 1 | . . 1 Overload Shots . | . . . Overflow Damage 84 | . 74 10 Projectiles . | . . . Explosions 84 | . 74 10 Melee . | . . . Knockbacks . | . . . Impact . | . . . Kinetic . | . . . Secondary . | . . . Self-Inflicted Damage 310 | . 274 36 Shots 5 | . 4 1 Rammed . | . . . Targets Rammed . | . . . Kicked . | . . . Crushed . | . . . Highest Temperature 72 | 6 53 72 Average Temperature 17 | 6 9 32 Received Heat Transfer 288 | 6 282 . Siege Activations . | . . . Robots Corrupted . | . . . Combat Hostiles . | . . . Parts Fried . | . . . Impact Corruptions . | . . . Robots Melted . | . . . Combat Hostiles . | . . . Parts Melted . | . . . Heat Transferred 299 | . 224 75 Parts Sabotaged . | . . . Parts Stolen . | . . . Parts Stripped . | . . . Power Chain Reactions . | . . . Missiles Intercepted . | . . . Alert | -11 -10 -10 ------- Run | Scr Mat Min Peak Influence 234 | 20 234 165 Average Influence 90 | 4 88 140 Maximum Alert Level 1 | . 1 . Low Security (%) 92 | 100 89 100 Level 1 7 | . 10 . Level 2 . | . . . Level 3 . | . . . Level 4 . | . . . Level 5 . | . . . High Security . | . . . Max Security . | . . . Squads Dispatched 4 | . 3 1 Investigation 3 | . 2 1 Extermination . | . . . Reinforcement 1 | . 1 . Assault . | . . . Garrison . | . . . Intercept . | . . . Construction Impeded . | . . . Haulers Reinforced . | . . . Stealth | -11 -10 -10 --------- Run | Scr Mat Min Distress Signals 3 | . 3 . Communications Jammed . | . . . Distress Signals . | . . . Times Spotted 35 | 1 27 7 Peak Tracking Total 6 | 1 6 3 Tactical Retreats 4 | . 3 1 Traps | -11 -10 -10 ------- Run | Scr Mat Min Traps Triggered . | . . . Indirectly . | . . . Trap Hack Attempts . | . . . Triggered . | . . . Disarmed . | . . . Reprogrammed 3 | . 3 . Reused 1 | . 1 . Traps Extracted . | . . . Installed . | . . . Triggered 1 | . 1 . Machines | -11 -10 -10 ---------- Run | Scr Mat Min Machines Disabled 5 | . 5 . Max in Single Turn 2 | . 2 . Machines Sabotaged . | . . . Garrisons Compromised . | . . . Overloaded Fab Kills . | . . . Fab Network Shutdowns . | . . . Hacking | -11 -10 -10 --------- Run | Scr Mat Min Machines Accessed 7 | . 6 1 Terminals 5 | . 5 . Fabricators . | . . . Repair Stations 1 | . 1 . Recycling Units . | . . . Scanalyzers . | . . . Garrison Access . | . . . Total Hacks 22 | . 21 1 Successful 14 | . 13 1 Failed 8 | . 8 . Catastrophic . | . . . Database Lockouts . | . . . Manual 3 | . 2 1 Terminals 17 | . 17 . Fabricators . | . . . Repair Stations 4 | . 4 . Recycling Units . | . . . Scanalyzers . | . . . Garrison Access . | . . . Terminal Hacks 11 | . 10 1 Record 1 | . 1 . Prototype ID Bank 1 | . 1 . Open Door 1 | . . 1 Alert Level 3 | . 3 . Unreport Threat 1 | . 1 . Locate Traps 1 | . 1 . Reprogram Traps 1 | . 1 . Dispatch Records 1 | . 1 . Investigation Status 1 | . 1 . Fabricator Hacks . | . . . Repair Station Hacks 3 | . 3 . Scan Component 1 | . 1 . Repair 1 | . 1 . Refit 1 | . 1 . Recycling Unit Hacks . | . . . Scanalyzer . | . . . Garrison Access Hacks . | . . . Unauthorized Hacks . | . . . Terminals . | . . . Fabricators . | . . . Repair Stations . | . . . Recycling Units . | . . . Scanalyzers . | . . . Garrison Access . | . . . Data Cores Recovered . | . . . Used . | . . . Hacking Detections 5 | . 5 . Full Trace Events 2 | . 2 . Feedback Events 1 | . 1 . Corruption 1 | . 1 . Feedback Blocked . | . . . Robot Schematics Acquired . | . . . Robots Built . | . . . Matter . | . . . Time . | . . . Total Robot Build Rating . | . . . Part Schematics Acquired . | . . . Parts Built . | . . . Matter . | . . . Time . | . . . Total Part Build Rating . | . . . Parts Repaired 1 | . 1 . Time 26 | . 26 . Parts Recycled . | . . . Recycled Matter . | . . . Retrieved Matter . | . . . Retrieved Components . | . . . Parts Scanalyzed . | . . . Part Schematics Acquired . | . . . Parts Damaged . | . . . Bothacking | -11 -10 -10 ------------ Run | Scr Mat Min Used RIF Installer . | . . . Robots Hacked . | . . . Non-combat . | . . . Combat . | . . . Robot Hacks Applied . | . . . Relay Couplers Released . | . . . Robots Rewired . | . . . Allies Hacked . | . . . Hacks Repelled . | . . . Allies | -11 -10 -10 -------- Run | Scr Mat Min Total Allies . | . . . Largest Group . | . . . Highest-Rated Group . | . . . Highest-Rated Ally . | . . . Total Orders . | . . . Ally Attacks . | . . . Total Damage . | . . . Kills . | . . . Allies Corrupted . | . . . Allies Melted . | . . . Intel | -11 -10 -10 ------- Run | Scr Mat Min Robot Analysis Total . | . . . Derelict Logs Recovered . | . . . Drone Launches . | . . . Drone Recoveries . | . . . Exploration | -11 -10 -10 ------------- Run | Scr Mat Min Turns Passed 910 | 88 638 184 Spaces Moved 890 | 67 458 365 Core 74 | 14 60 . Treads . | . . . Legs 362 | 53 309 . Wheels . | . . . Hover 10 | . 10 . Flight 444 | . 79 365 Fastest Speed 37 | 50 37 37 Average Speed 75 | 105 101 38 Slowest Speed 250 | 120 250 120 Overloaded Moves . | . . . Propulsion Burnouts . | . . . Robots Hopped 2 | . 2 . Cave-ins Triggered . | . . . Exploration Rate (%) 48 | 9 61 74 Regions Visited 2 Branch Regions 1 Pre-discovered Areas . | . . . Known Exits Taken . | . . . Unknown Exits Taken 2 | 1 1 . Scrap Searched 1 | . . 1 Spaces Dug . | . . . Terrain Destroyed 125 | . 73 52 Melee . | . . . Projectile . | . . . AOE 125 | . 73 52 Actions | -11 -10 -10 --------- Run | Scr Mat Min Total 1033 | 80 554 399 Wait 13 | 5 8 . Move 884 | 66 453 365 Hop 2 | . 2 . Pick Up 12 | 3 6 3 Fast Attach 19 | 5 9 5 Attach 12 | . 6 6 Detach 7 | . 2 5 Swap 2 | . 2 . Drop 14 | . 8 6 Fire 68 | 1 58 9 Melee . | . . . Ram . | . . . Kick . | . . . Crush . | . . . Escape Stasis . | . . . Rewire . | . . . Trap . | . . . Miscellaneous . | . . . Route ------- -11/Scrapyard -10/Materials (discovered 3 exits: [*Mat x2] / *Min) -10/Mines (discovered 3 exits: [*Mat x2] / [*Exi]) History --------- Turn | Location | Event 2 | -11/Scrapyard | Met Revision 17 64 | -11/Scrapyard | Discovered new exit (range 8) 89 | -11/Scrapyard | Entered Materials 228 | -10/Materials | Discovered new exit (range 16) 301 | -10/Materials | Build established: Mutant 413 | -10/Materials | Discovered new exit (range 15) 545 | -10/Materials | Repaired Aluminum Leg 599 | -10/Materials | Discovered new exit (range 10) 639 | -10/Materials | Core integrity fell below 50% 658 | -10/Materials | Core integrity fell below 20% 675 | -10/Materials | Lost 6 parts (1p3n2w) 727 | -10/Materials | Entered Mines 730 | -10/Mines | Found a hidden stash of uninstalled traps 741 | -10/Mines | Assembled infested the area 754 | -10/Mines | Received a Rocket Launcher from a helpful Derelict 801 | -10/Mines | Deemed a non-threat by the Exiles lab entrance 801 | -10/Mines | Discovered new exit (range 5) 821 | -10/Mines | Discovered new exit (range 9) 823 | -10/Mines | Met a Derelict shopkeep closing up shop 867 | -10/Mines | Discovered new exit (range 13) 911 | -10/Mines | Destroyed by D-53 Grenadier with Mini Grenade Launcher Last Messages --------------- R-06 Scavenger collects Heat Sink. K-01 Serf collects debris. R-06 Scavenger destroyed. K-01 Serf collects debris. EXIT=FOUND A derelict emerges from the shadows: "What are you doing alone down here?" 83-7SM(g): "Well, at least you look like you can take care of yourself!" An audio recording is triggered: "If you're looking for Megawrench, sorry but we're not in our cave right now, after essentially being evicted by all these Unaware tunnelers." "Blame H1-IDC, who apparently didn't care about the consequences of repeatedly making a mess in Materials. Shooting at robots and generally destroying stuff raised the alert level high enough to trigger assault squads over in the main complex, and they later decided the best way to defend their interests would be to start expanding in this direction." 83-7SM(g): "I have the funny feeling that things are about to get a lot worse around here, see you around!" 83-7SM(g) slips back into the shadows. Acquired 76 matter. Flight Unit destroyed. Map ----- +----------------------------------------------------+ | ##????? #?????? ????????????## #??????????? | | ##?????? #??????? ???????????????# ##??????????? | | ##?????? #????????#??????????????? #???????????? | | #????? #???????????????????????? #???????????? | | # #????? #???????????????????????? ##???????????? | | # #????? ?????????????????????????? #????????????? | | # #????? ?????????????????????????? #????????????? | | # #???????????????????????????????? ????????????? | | # #????????????????????????????????? ????????????? | | # #????????????????????????????????? ????????????? | | ###??????????????????????????????? ????????????? | | ##???????????????????????????????????????????? | | #?????????????#?????????????????????????????? | | ### #??????????? ##%????????????????????????????? | | ??## ##?????????? # ###?????????????????????????? | | ???# ##?????????? #????????????????????????? | | #### ##?????????? < ?#??????????????????????? | | # #?????????? # ??????????????????????? | | # ### ##?????????? #??????????????????????? | | # #?# #####??????? ??????????????????????? | | # ### #???????#d ??????????????????????? | | % #??????? #??????????????????????? | | ###!# #???????? #??????????????????????? | | ??# ## ##????????# #??????????????????????? | | ??# ##########?????????# ##?????????????????????? | | ??# #????############### @# ?????????????????????? | | ??# #????# # ?###?????????????????? | | ??# #????# ############## # # ##????????????????? | | ??# #????# #??########## ## #????????????????? | | ??# #????# ### #????????????????? | | ?## ##???# #??######### #?# #????????????????? | | ## ##??# #??????????# ### #??####???????????? | | # ##?# ##???????### ## #??## ####????????? | | ### ##?????## #?## #???###??? | | # ##???## ### ## #?## ##?? | | ## < ##### ## ### #?? | | ## ##### ## ## #?? | | # ##???###### ## # #?? | | ############?????????## #??? | | #######?????????????????????######## ##??? | | ##??????????????????????????????????## ###???? | | #####????????????????????????????????????###?????? | | ?????????????????????????????????????????????????? | | ?????????????????????????????????????????????????? | | | | | | | | | | | | | +----------------------------------------------------+ Best States ------------- Heat Dissipation 35 Energy Generation 14 Energy Capacity 250 Matter Stores 300 Matter Capacity 300 Sight Range 16 Terrain Scan Density 10 Evasion (%) 68 Targeting Accuracy 5 Item Schematics ----------------- None Robot Schematics ------------------ None Fabricated ------------ Nothing Alien Tech Used ----------------- None Achievements -------------- Everything Is Under Control Challenges ------------ None Game ------ Seed TransmissionVisualTearclaws Manual? 0 Play Time 00:27:44 Cumulative 2.2 hours Start 2020.07.12 @ 23:44:49 End 2020.07.13 @ 17:28:03 Sessions 3 Manual Loads 0 Difficulty Rogue Special Mode None Game No. 2 Rogue 2 Adventurer 0 Explorer 0 Win Type - Total 0 Types 0/0/0/0/0/0/0 Lore% 1 Gallery% 4 Achievement% 4 Wizard Run 0 Options --------- ASCII 0 Keyboard 1 Movement Vi Keybinds 0 Fullscreen 2 Font 12/Terminus Map View 83x54 Tactical HUD 0 Map Filters NONE Filters NONE Steam 1 RUN: 182c330e-4c5e-44dd-b71b-1db0395cb2a5